[Event "Slovakia Chess Open 2024"]
[Site "Modra"]
[Date "2024.03.05"]
[Round "8.8"]
[White "Visvader, Kristof"]
[Black "Mruskovic, Radoslav"]
[Result "0-1"]
[ECO "B07"]
[WhiteElo "1696"]
[BlackElo "1933"]
[Annotator "ChessBase"]
[PlyCount "102"]
[EventDate "2024.02.29"]
[EventType "swiss"]
[EventCountry "SVK"]
[SourceTitle "playchess.com"]
[Source "ChessBase"]
[SourceQuality "1"]
[TimeControl "5400+30"]

1. e4 {[%emt 0:00:09]} d6 {[%emt 0:00:23]} 2. d4 {[%emt 0:00:31]} Nf6 {[%emt 0:00:20]} 3. Nc3 {[%emt 0:00:36]} c6 {[%emt 0:00:07]} 4. Nf3 {[%emt 0:01:16]} Bg4 {[%emt 0:00:07]} 5. Bf4 {[%emt 0:01:15]} Qa5 {[%emt 0:00:26]} 6. Bd3 {[%emt 0:02:16]} e5 {[%emt 0:01:39]} 7. dxe5 {[%emt 0:00:39]} dxe5 {[%emt 0:00:12]} 8. Bd2 {[%emt 0:03:11]} Qb6 {[%emt 0:01:01]} 9. h3 {[%emt 0:04:51]} Bxf3 {[%emt 0:01:29]} 10. Qxf3 {[%emt 0:00:09]} Nbd7 {[%emt 0:00:26]} 11. O-O-O {[%emt 0:01:37]} Be7 {[%emt 0:05:32]} 12. g4 {[%emt 0:02:04]} h6 {[%emt 0:03:11]} 13. h4 {[%emt 0:03:33]} g6 {[%emt 0:06:50]} 14. Bc4 {[%emt 0:04:13]} Rf8 {[%emt 0:03:33]} 15. Bxh6 {[%emt 0:02:09]} O-O-O {[%emt 0:03:07]} 16. Bxf8 {[%emt 0:04:53]} Rxf8 {[%emt 0:00:40]} 17. h5 {[%emt 0:01:14]} Qb4 {[%emt 0:02:06]} 18. Bd3 {[%emt 0:08:05]} Nc5 {[%emt 0:00:57]} 19. h6 {[%emt 0:01:00]} Ne6 {[%emt 0:01:38]} 20. a3 {[%emt 0:02:48]} Qa5 {[%emt 0:00:33]} 21. Bc4 {[%emt 0:02:14]} Ng5 {[%emt 0:02:56]} 22. Qe2 {[%emt 0:04:24]} Bxa3 {[%emt 0:01:31]} 23. Qd2 {[%emt 0:04:20]} Bb4 {[%emt 0:09:59]} 24. Kb1 {[%emt 0:08:58]} Ngxe4 {[%emt 0:01:50]} 25. Qe3 {[%emt 0:00:24]} Nxc3+ {[%emt 0:02:14]} 26. bxc3 {[%emt 0:01:06]} Bxc3 {[%emt 0:00:31]} 27. Ba2 {[%emt 0:00:12]} Qa3 {[%emt 0:05:36]} 28. Qc1 {[%emt 0:00:21]} Qb4+ {[%emt 0:00:06]} 29. Bb3 {[%emt 0:00:16]} Nxg4 {[%emt 0:02:55]} 30. Rh4 {[%emt 0:01:42]} Qa5 {[%emt 0:01:15]} 31. Ba2 {[%emt 0:00:26]} f5 {[%emt 0:02:04]} 32. f3 {[%emt 0:01:13]} Nf6 {[%emt 0:02:04]} 33. Rg1 {[%emt 0:04:08]} g5 {[%emt 0:03:42]} 34. Rxg5 {[%emt 0:01:03]} Bd2 {[%emt 0:00:31]} 35. Qg1 {[%emt 0:00:12]} e4 {[%emt 0:05:43]} 36. Be6+ {[%emt 0:03:10]} Kc7 {[%emt 0:05:27]} 37. Rxf5 {[%emt 0:01:37]} Qb4+ {[%emt 0:00:54]} 38. Bb3 {[%emt 0:00:45]} Nd5 {[%emt 0:02:59]} 39. Rxd5 {[%emt 0:05:19]} cxd5 {[%emt 0:00:37]} 40. h7 {[%emt 0:02:21]} Bc3 {[%emt 0:03:43]} 41. Qc1 {[%emt 0:04:33]} a5 {[%emt 0:01:44]} 42. fxe4 {[%emt 0:01:57]} dxe4 {[%emt 0:01:56]} 43. Ka2 {[%emt 0:00:22]} a4 {[%emt 0:00:44]} 44. Bg8 {[%emt 0:01:40]} Bh8 {[%emt 0:02:32]} 45. Qa3 {[%emt 0:01:04]} Qd4 {[%emt 0:01:13]} 46. Qe7+ {[%emt 0:04:51]} Kb6 {[%emt 0:00:19]} 47. Rh6+ {[%emt 0:00:51]} Ka7 {[%emt 0:00:09]} 48. Ka3 {[%emt 0:02:02]} Rf3+ {[%emt 0:01:28]} 49. c3 {[%emt 0:00:43]} Rxc3+ {[%emt 0:00:19]} 50. Ka2 {[%emt 0:00:11]} Qd2+ {[%emt 0:00:16]} 51. Ka1 {[%emt 0:00:07]} Rc1# {[%emt 0:00:12]} 0-1

[Event "Slovakia Chess Open 2024"]
[Site "Modra"]
[Date "2024.03.05"]
[Round "8.9"]
[White "Gonda, Jan"]
[Black "Kukla, Tomas"]
[Result "0-1"]
[ECO "D31"]
[WhiteElo "1657"]
[BlackElo "1864"]
[Annotator "NA"]
[PlyCount "73"]
[EventDate "2024.02.29"]
[EventType "swiss"]
[EventCountry "SVK"]
[SourceTitle "playchess.com"]
[Source "ChessBase"]
[SourceQuality "1"]
[TimeControl "5400+30"]

1. d4 {[%emt 0:08:33]} d5 {[%emt 0:00:07]} 2. c4 {[%emt 0:00:05]} c6 {[%emt 0:00:05]} 3. e3 {[%emt 0:00:07]} Nf6 {[%emt 0:00:10]} 4. Nc3 {[%emt 0:00:16]} e6 {[%emt 0:00:18]} 5. a3 {[%emt 0:00:00]} dxc4 {[%emt 0:00:13]} 6. Bxc4 {[%emt 0:00:20] D31: Queen's Gambit Declined: Semi-Slav without ...Nf6 (+ Marshall Gambit and Noteboom) and Exchange Variation lines without ...Nf6.} Bd6 {[%emt 0:00:43]} 7. b4 {[%emt 0:00:05]} Nbd7 {[%emt 0:01:25]} 8. Nf3 {[%emt 0:00:30]} b5 {[%emt 0:00:30]} 9. Ba2 {[%emt 0:00:46]} a5 {[%emt 0:01:21]} 10. Qb3 {[%emt 0:00:29]} a4 {[%emt 0:01:46]} 11. Qc2 {[%emt 0:00:24]} Qc7 {[%emt 0:01:22]} 12. Bb2 {[%emt 0:00:58]} Bb7 {[%emt 0:01:02]} 13. O-O {[%emt 0:07:15]} Rc8 {[%emt 0:00:41]} 14. h3 {[%emt 0:00:42]} Ng4 {[%emt 0:03:03]} 15. Ne4 {[%emt 0:05:41]} h5 {[%emt 0:00:27]} 16. Nc5 {[%emt 0:02:06]} Be7 {[%emt 0:04:29]} 17. Rac1 {[%emt 0:10:41]} Ngf6 {[%emt 0:09:19]} 18. Bxe6 {[%emt 0:00:30]} Ba8 {[%emt 0:10:46]} 19. Bxd7+ {[%emt 0:02:45]} Nxd7 {[%emt 0:00:30]} 20. Nxd7 {[%emt 0:00:30]} Qxd7 {[%emt 0:00:30]} 21. Ne5 {[%emt 0:00:30]} Qe6 {[%emt 0:00:30]} 22. Nd3 {[%emt 0:00:30]} c5 {[%emt 0:00:30]} 23. dxc5 {[%emt 0:01:55]} Be4 {[%emt 0:04:16]} 24. f3 {[%emt 0:02:24]} Bd5 {[%emt 0:03:30]} 25. e4 {[%emt 0:03:04]} Bc4 {[%emt 0:02:55]} 26. Rfe1 {[%emt 0:07:35]} Bh4 {[%emt 0:04:25]} 27. Nf2 {[%emt 0:00:54]} O-O {[%emt 0:04:48]} 28. Qc3 {[%emt 0:04:32]} Qg6 {[%emt 0:01:02]} 29. f4 {[%emt 0:07:22]} f5 {[%emt 0:02:37]} 30. e5 {[%emt 0:01:19]} Bd5 {[%emt 0:00:59]} 31. g4 {[%emt 0:10:29]} hxg4 {[%emt 0:01:19]} 32. hxg4 {[%emt 0:06:06]} fxg4 {[%emt 0:01:01]} 33. Qe3 {[%emt 0:03:11]} Qh5 $19 {[%emt 0:05:03]} (33... Qh6 $142 34. Nxg4 Qg6 (34... Qxf4 $2 35. Qxf4 Rxf4 36. Nh6+ gxh6 37. Rf1 $19)) 34. Ne4 {[%emt 0:07:15]} Bxe1 {[%emt 0:03:11]} 35. Rxe1 {[%emt 0:00:18]} Rf5 {[%emt 0:01:18]} 36. Ng3 {[%emt 0:01:06]} Qh3 {[%emt 0:00:44]} 37. Kf2 {[%emt 0:04:09]} 0-1

[Event "Slovakia Chess Open 2024"]
[Site "Modra"]
[Date "2024.03.05"]
[Round "8.10"]
[White "Pisarcik, Richard"]
[Black "Bucor, Mark"]
[Result "0-1"]
[ECO "B15"]
[WhiteElo "1855"]
[BlackElo "1852"]
[Annotator "NA RC"]
[PlyCount "52"]
[EventDate "2024.02.29"]
[EventType "swiss"]
[EventCountry "SVK"]
[SourceTitle "playchess.com"]
[Source "ChessBase"]
[SourceQuality "1"]
[TimeControl "5400+30"]

1. e4 {[%emt 0:00:10]} c6 {[%emt 0:00:06]} 2. d4 {[%emt 0:00:03]} d5 {[%emt 0:00:05]} 3. Nc3 {[%emt 0:00:03]} dxe4 {[%emt 0:00:05]} 4. Nxe4 {[%emt 0:00:03]} Nf6 {[%emt 0:00:21]} 5. Nxf6+ {[%emt 0:00:06]} exf6 {[%emt 0:00:05]} 6. c3 {[%emt 0:00:09]} Bd6 {[%emt 0:00:11]} 7. Bd3 {[%emt 0:01:39]} O-O {[%emt 0:06:21]} 8. Qc2 {[%emt 0:02:55]} h5 {[%emt 0:14:46]} 9. Be3 {[%emt 0:02:36]} a5 {[%emt 0:03:36]} 10. Nf3 {[%emt 0:09:04]} Be6 {[%emt 0:11:02]} 11. h3 {[%emt 0:02:14]} Re8 {[%emt 0:04:47]} 12. O-O-O {[%emt 0:02:52]} Na6 {[%emt 0:14:43]} 13. Be4 {[%emt 0:07:25]} Qc7 {[%emt 0:17:54]} 14. Kb1 {[%emt 0:05:06]} a4 {[%emt 0:03:12]} 15. d5 {[%emt 0:02:20]} cxd5 {[%emt 0:00:21]} 16. Bxd5 {[%emt 0:00:18]} a3 {[%emt 0:03:00]} 17. b3 {[%emt 0:01:16]} Rac8 {[%emt 0:09:07]} 18. Bxb7 {[%emt 0:03:14]} Qxb7 {[%emt 0:00:09]} 19. Rxd6 {[%emt 0:00:08]} Nb4 {[%emt 0:00:17]} 20. Rb6 {[%emt 0:13:16]} Qd7 {[%emt 0:02:21]} 21. Rd1 {[%emt 0:06:37]} Nxc2 {[%emt 0:01:31]} 22. Rxd7 {[%emt 0:00:07]} Nxe3 {[%emt 0:00:30]} 23. Ra7 {[%emt 0:00:43]} Bf5+ {[%emt 0:01:25]} 24. Kc1 {[%emt 0:01:20]} Rxc3+ {[%emt 0:00:27]} 25. Kd2 {[%emt 0:00:11]} Rc2+ {[%emt 0:00:08]} 26. Ke1 {[%emt 0:00:06]} Nc4+ {[%emt 0:00:18]} 0-1

[Event "Slovakia Chess Open 2024"]
[Site "Modra"]
[Date "2024.03.05"]
[Round "8.11"]
[White "Nosal, Tobias"]
[Black "Hitka, Dominik"]
[Result "1/2-1/2"]
[ECO "C01"]
[WhiteElo "1773"]
[BlackElo "1709"]
[Annotator "NA RC"]
[PlyCount "69"]
[EventDate "2024.02.29"]
[EventType "swiss"]
[EventCountry "SVK"]
[SourceTitle "playchess.com"]
[Source "ChessBase"]
[SourceQuality "1"]
[TimeControl "5400+30"]

1. d4 {[%emt 0:00:04]} e6 {[%emt 0:00:07]} 2. Nc3 {[%emt 0:00:07]} Bb4 {[%emt 0:00:09]} 3. e4 {[%emt 0:01:28]} d5 {[%emt 0:00:07]} 4. exd5 {[%emt 0:01:47]} exd5 {[%emt 0:00:11]} 5. Nf3 {[%emt 0:02:32]} Nf6 {[%emt 0:00:43]} 6. Be2 {[%emt 0:04:22]} Ne4 {[%emt 0:01:33]} 7. Bd2 {[%emt 0:02:08]} Nxd2 {[%emt 0:01:14]} 8. Qxd2 {[%emt 0:00:28]} c6 {[%emt 0:02:06]} 9. O-O {[%emt 0:01:43]} O-O {[%emt 0:00:33]} 10. Rfe1 {[%emt 0:02:54]} Qa5 {[%emt 0:00:43]} 11. Bd3 {[%emt 0:03:54]} Nd7 {[%emt 0:03:33]} 12. a3 {[%emt 0:09:49]} Bxc3 {[%emt 0:00:55]} 13. Qxc3 {[%emt 0:01:28]} Qd8 {[%emt 0:02:31]} 14. Ne5 {[%emt 0:05:51]} Nxe5 {[%emt 0:04:48]} 15. Rxe5 {[%emt 0:00:14]} Qf6 {[%emt 0:01:07]} 16. Rae1 {[%emt 0:05:49]} Be6 {[%emt 0:00:10]} 17. Qd2 {[%emt 0:02:31]} h6 {[%emt 0:01:53]} 18. c3 {[%emt 0:02:52]} Rfe8 {[%emt 0:00:22]} 19. Bc2 {[%emt 0:01:42]} Re7 {[%emt 0:02:11]} 20. R1e3 {[%emt 0:04:51]} g6 {[%emt 0:02:19]} 21. Rg3 {[%emt 0:03:43]} Qg7 {[%emt 0:01:38]} 22. Rge3 {[%emt 0:01:56]} Qf6 {[%emt 0:02:10]} 23. Re2 {[%emt 0:03:27]} Qg7 {[%emt 0:00:46]} 24. Qe1 {[%emt 0:01:55]} Rae8 {[%emt 0:01:15]} 25. f4 {[%emt 0:05:03]} Qf6 {[%emt 0:02:30]} 26. f5 {[%emt 0:08:42]} gxf5 {[%emt 0:00:23]} 27. Bxf5 {[%emt 0:02:23]} Kf8 {[%emt 0:00:25]} 28. Bxe6 {[%emt 0:04:21]} Rxe6 {[%emt 0:01:32]} 29. Rxe6 {[%emt 0:01:02]} Rxe6 {[%emt 0:00:08]} 30. Rxe6 {[%emt 0:01:09]} fxe6 {[%emt 0:00:20]} 31. Qg3 {[%emt 0:02:15]} Qf5 {[%emt 0:08:18]} 32. Qb8+ {[%emt 0:03:48]} Kg7 {[%emt 0:00:56]} 33. Qxb7+ {[%emt 0:01:58]} Kg6 {[%emt 0:00:20]} 34. Qb3 {[%emt 0:03:17]} Qd3 {[%emt 0:01:18]} 35. Kf2 {[%emt 0:01:56]} 1/2-1/2

[Event "Slovakia Chess Open 2024"]
[Site "Modra"]
[Date "2024.03.05"]
[Round "8.12"]
[White "Chojnacki, Kevin"]
[Black "Loffay, Pavol"]
[Result "0-1"]
[ECO "A49"]
[WhiteElo "1672"]
[BlackElo "1753"]
[Annotator "NA RC"]
[PlyCount "58"]
[EventDate "2024.02.29"]
[EventType "swiss"]
[EventCountry "SVK"]
[SourceTitle "playchess.com"]
[Source "ChessBase"]
[SourceQuality "1"]
[TimeControl "5400+30"]

1. b3 {[%emt 0:00:05]} d6 {[%emt 0:00:06]} 2. Bb2 {[%emt 0:00:20]} Nf6 {[%emt 0:00:08]} 3. d4 {[%emt 0:01:09]} g6 {[%emt 0:00:06]} 4. Nf3 {[%emt 0:01:18]} Bg7 {[%emt 0:00:18]} 5. g3 {[%emt 0:01:21]} O-O {[%emt 0:00:53]} 6. Bg2 {[%emt 0:00:17]} c6 {[%emt 0:01:08]} 7. O-O {[%emt 0:00:15]} Bg4 {[%emt 0:00:44]} 8. h3 {[%emt 0:01:20]} Bxf3 {[%emt 0:00:06]} 9. Bxf3 {[%emt 0:00:12]} Qc7 {[%emt 0:02:52]} 10. c4 {[%emt 0:03:57]} Nbd7 {[%emt 0:02:30]} 11. Nc3 {[%emt 0:01:21]} e5 {[%emt 0:04:15]} 12. d5 {[%emt 0:00:18]} Rfe8 {[%emt 0:01:18]} 13. e4 {[%emt 0:01:25]} a5 {[%emt 0:04:42]} 14. Rc1 {[%emt 0:00:25]} Nc5 {[%emt 0:01:45]} 15. Ba3 {[%emt 0:01:02]} Nfd7 {[%emt 0:01:28]} 16. Re1 {[%emt 0:02:51]} f5 {[%emt 0:03:00]} 17. exf5 {[%emt 0:02:38]} gxf5 {[%emt 0:00:25]} 18. dxc6 {[%emt 0:01:05]} bxc6 {[%emt 0:01:19]} 19. Bxc5 {[%emt 0:01:10]} Nxc5 {[%emt 0:00:13]} 20. Bg2 {[%emt 0:07:47]} e4 {[%emt 0:03:40]} 21. Bf1 {[%emt 0:00:12]} Be5 {[%emt 0:05:01]} 22. Qh5 {[%emt 0:06:52]} Qg7 {[%emt 0:03:32]} 23. Na4 {[%emt 0:11:09]} Bd4 {[%emt 0:07:33]} 24. Kg2 {[%emt 0:01:00]} Nxa4 {[%emt 0:02:25]} 25. bxa4 {[%emt 0:00:01]} Re5 {[%emt 0:01:44]} 26. Be2 {[%emt 0:03:58]} f4 {[%emt 0:00:43]} 27. Qg4 {[%emt 0:02:27]} f3+ {[%emt 0:01:11]} 28. Bxf3 {[%emt 0:00:14]} exf3+ {[%emt 0:00:06]} 29. Qxf3 {[%emt 0:00:25]} Rf8 {[%emt 0:00:21]} 0-1

[Event "Slovakia Chess Open 2024"]
[Site "Modra"]
[Date "2024.03.05"]
[Round "8.13"]
[White "Fratric, Jakub"]
[Black "Banas, Samuel"]
[Result "1-0"]
[ECO "C88"]
[WhiteElo "1750"]
[BlackElo "1733"]
[Annotator "NA"]
[PlyCount "35"]
[EventDate "2024.02.29"]
[EventType "swiss"]
[EventCountry "SVK"]
[SourceTitle "playchess.com"]
[Source "ChessBase"]
[SourceQuality "1"]
[TimeControl "5400+30"]

1. e4 {[%emt 0:00:04]} e5 {[%emt 0:01:24]} 2. Nf3 {[%emt 0:00:10]} Nc6 {[%emt 0:00:14]} 3. Bb5 {[%emt 0:00:14]} a6 {[%emt 0:00:09]} 4. Ba4 {[%emt 0:00:12]} Nf6 {[%emt 0:00:10]} 5. O-O {[%emt 0:00:17]} Be7 {[%emt 0:00:08]} 6. Re1 {[%emt 0:00:15]} b5 {[%emt 0:00:09]} 7. Bb3 {[%emt 0:00:07]} O-O {[%emt 0:00:10]} 8. a4 {[%emt 0:00:47]} b4 {[%emt 0:00:13]} 9. d3 {[%emt 0:00:27]} h6 {[%emt 0:00:20]} 10. Nbd2 {[%emt 0:00:34]} Re8 {[%emt 0:00:37]} 11. Nf1 {[%emt 0:00:14]} Bb7 {[%emt 0:00:13]} 12. Ng3 {[%emt 0:02:28]} d5 {[%emt 0:03:54]} 13. exd5 {[%emt 0:01:55]} Nxd5 {[%emt 0:00:14]} 14. Nxe5 {[%emt 0:00:43]} Nd4 {[%emt 0:06:23]} 15. Qg4 {[%emt 0:08:39]} Nxb3 {[%emt 0:04:42]} 16. Nf5 {[%emt 0:00:59]} Bf6 {[%emt 0:01:42]} 17. Bxh6 {[%emt 0:05:06]} g6 {[%emt 0:05:50]} 18. Nxg6 {[%emt 0:01:02]} 1-0

[Event "Slovakia Chess Open 2024"]
[Site "Modra"]
[Date "2024.03.05"]
[Round "8.14"]
[White "Zentko, Ladislav"]
[Black "Pikulik, Roman"]
[Result "1-0"]
[ECO "D90"]
[WhiteElo "1749"]
[BlackElo "1675"]
[Annotator "NA"]
[PlyCount "54"]
[EventDate "2024.02.29"]
[EventType "swiss"]
[EventCountry "SVK"]
[SourceTitle "playchess.com"]
[Source "ChessBase"]
[SourceQuality "1"]
[TimeControl "5400+30"]

1. Nf3 {[%emt 0:00:09]} d5 {[%emt 0:03:27]} 2. d4 {[%emt 0:00:07]} c5 {[%emt 0:00:30]} 3. c3 {[%emt 0:00:50]} cxd4 {[%emt 0:01:28]} 4. cxd4 {[%emt 0:00:25]} Nf6 {[%emt 0:01:48]} 5. Nc3 {[%emt 0:00:30]} g6 {[%emt 0:00:30]} 6. Bf4 {[%emt 0:01:09]} Bg7 {[%emt 0:00:01]} 7. h3 {[%emt 0:01:09]} a6 {[%emt 0:00:30]} 8. e3 {[%emt 0:00:53]} Bf5 {[%emt 0:05:59]} 9. g4 {[%emt 0:08:20]} Bc8 {[%emt 0:02:31]} 10. Bg2 {[%emt 0:01:50]} e6 {[%emt 0:02:44]} 11. Rc1 {[%emt 0:01:28]} O-O {[%emt 0:00:20]} 12. O-O {[%emt 0:09:23]} Nc6 {[%emt 0:00:30]} 13. a3 {[%emt 0:00:30]} Na5 {[%emt 0:00:44]} 14. Nd2 {[%emt 0:07:07]} b5 {[%emt 0:01:59]} 15. b4 {[%emt 0:02:07]} Nc4 {[%emt 0:03:01]} 16. Nxc4 {[%emt 0:00:19]} bxc4 {[%emt 0:00:10]} 17. e4 {[%emt 0:07:37]} Bb7 {[%emt 0:01:21]} 18. e5 {[%emt 0:04:36]} Ne4 {[%emt 0:05:20]} 19. Nxe4 {[%emt 0:00:48]} dxe4 {[%emt 0:00:11]} 20. Rxc4 {[%emt 0:01:45]} Bd5 {[%emt 0:00:19]} 21. Rc5 {[%emt 0:00:48]} f5 {[%emt 0:00:20]} 22. Qd2 {[%emt 0:02:16]} fxg4 {[%emt 0:02:15]} 23. Bg5 {[%emt 0:01:14]} Qe8 {[%emt 0:06:15]} 24. hxg4 {[%emt 0:00:37]} Qf7 {[%emt 0:01:28]} 25. Rfc1 {[%emt 0:03:04]} h6 {[%emt 0:09:27]} 26. Bh4 {[%emt 0:00:38]} g5 {[%emt 0:00:34]} 27. Bg3 {[%emt 0:00:14]} Qd7 {[%emt 0:02:27]} 1-0

[Event "Slovakia Chess Open 2024"]
[Site "Modra"]
[Date "2024.03.05"]
[Round "8.15"]
[White "Smolka, Robert"]
[Black "Mruskovic, Ondrej"]
[Result "1-0"]
[ECO "C42"]
[WhiteElo "1620"]
[BlackElo "1510"]
[Annotator "NA"]
[PlyCount "59"]
[EventDate "2024.02.29"]
[EventType "swiss"]
[EventCountry "SVK"]
[SourceTitle "playchess.com"]
[Source "ChessBase"]
[SourceQuality "1"]
[TimeControl "5400+30"]

1. e4 {[%emt 0:00:03]} e5 {[%emt 0:00:02]} 2. Nf3 {[%emt 0:00:21]} Nf6 {[%emt 0:00:09]} 3. Nxe5 {[%emt 0:02:28]} Qe7 {[%emt 0:00:08]} 4. d4 {[%emt 0:00:50]} d6 {[%emt 0:02:24]} 5. Nf3 {[%emt 0:04:01]} Nxe4 {[%emt 0:00:15]} 6. Be2 {[%emt 0:01:11]} g6 {[%emt 0:01:10]} 7. O-O {[%emt 0:01:05]} d5 {[%emt 0:02:29]} 8. Re1 {[%emt 0:00:25]} Bg7 {[%emt 0:15:45]} 9. Bg5 {[%emt 0:00:45]} f6 {[%emt 0:04:59]} 10. Bh4 {[%emt 0:01:48]} O-O {[%emt 0:01:39]} 11. c4 {[%emt 0:02:05]} c6 {[%emt 0:01:19]} 12. cxd5 {[%emt 0:09:51]} cxd5 {[%emt 0:00:10]} 13. Bd3 {[%emt 0:03:54]} Qb4 {[%emt 0:02:38]} 14. Qb3 {[%emt 0:07:14]} Qxb3 {[%emt 0:00:38]} 15. axb3 {[%emt 0:00:06]} Nd6 {[%emt 0:00:26]} 16. Bg3 {[%emt 0:00:50]} Rd8 {[%emt 0:02:00]} 17. Nc3 {[%emt 0:02:29]} a6 {[%emt 0:01:41]} 18. Nxd5 {[%emt 0:00:39]} Nc6 {[%emt 0:05:34]} 19. Nb6 {[%emt 0:03:26]} Ra7 {[%emt 0:01:08]} 20. Bxd6 {[%emt 0:00:35]} Bg4 {[%emt 0:05:54]} 21. Bc4+ {[%emt 0:01:01]} Kh8 {[%emt 0:00:41]} 22. Bc7 {[%emt 0:01:17]} Rf8 {[%emt 0:00:46]} 23. d5 {[%emt 0:00:25]} Bxf3 {[%emt 0:02:02]} 24. gxf3 {[%emt 0:00:15]} Ne5 {[%emt 0:01:13]} 25. Re3 {[%emt 0:01:04]} Bh6 {[%emt 0:02:39]} 26. Rc3 {[%emt 0:05:32]} Bf4 {[%emt 0:03:38]} 27. d6 {[%emt 0:04:41]} Raa8 {[%emt 0:02:07]} 28. Nxa8 {[%emt 0:00:37]} Rxa8 {[%emt 0:00:04]} 29. Kg2 {[%emt 0:01:28]} Nd7 {[%emt 0:00:28]} 30. Re1 {[%emt 0:01:01]} 1-0

[Event "Slovakia Chess Open 2024"]
[Site "Modra"]
[Date "2024.03.05"]
[Round "8.16"]
[White "Veres, Alex"]
[Black "Rozboril, Alex"]
[Result "1/2-1/2"]
[ECO "C49"]
[WhiteElo "1584"]
[BlackElo "1563"]
[Annotator "NA"]
[PlyCount "36"]
[EventDate "2024.02.29"]
[EventType "swiss"]
[EventCountry "SVK"]
[SourceTitle "playchess.com"]
[Source "ChessBase"]
[SourceQuality "1"]
[TimeControl "5400+30"]

1. e4 {[%emt 0:00:20]} e5 {[%emt 0:00:04]} 2. Nf3 {[%emt 0:00:27]} Nf6 {[%emt 0:01:09]} 3. Nc3 {[%emt 0:00:27]} Nc6 {[%emt 0:00:35]} 4. Bb5 {[%emt 0:00:51]} Bb4 {[%emt 0:01:08]} 5. d3 {[%emt 0:02:39]} d6 {[%emt 0:03:21]} 6. a3 {[%emt 0:02:00]} Ba5 {[%emt 0:05:13]} 7. b4 {[%emt 0:01:38]} Bb6 {[%emt 0:00:53]} 8. h3 {[%emt 0:03:04]} h6 {[%emt 0:06:17]} 9. O-O {[%emt 0:04:25]} O-O {[%emt 0:01:32]} 10. Be3 {[%emt 0:02:36]} Bd7 {[%emt 0:15:18]} 11. Qd2 {[%emt 0:04:04]} Kh7 {[%emt 0:09:45]} 12. Ne2 {[%emt 0:08:58]} Ne7 {[%emt 0:10:25]} 13. Bxd7 {[%emt 0:01:19]} Qxd7 {[%emt 0:00:14]} 14. c4 {[%emt 0:05:07]} a6 {[%emt 0:07:49]} 15. Qc2 {[%emt 0:03:26]} Kg8 {[%emt 0:04:04]} 16. Rfd1 {[%emt 0:08:53]} Qc6 {[%emt 0:04:03]} 17. Rac1 {[%emt 0:06:45]} Bxe3 {[%emt 0:04:44]} 18. fxe3 {[%emt 0:00:08]} a5 {[%emt 0:10:19]} 1/2-1/2

[Event "Slovakia Chess Open 2024"]
[Site "Modra"]
[Date "2024.03.05"]
[Round "8.17"]
[White "Hanzel, Richard"]
[Black "Lepejova Viola"]
[Result "1-0"]
[ECO "E01"]
[WhiteElo "1531"]
[BlackElo "1000"]
[Annotator "NA"]
[PlyCount "110"]
[EventDate "2024.02.29"]
[EventType "swiss"]
[EventCountry "SVK"]
[SourceTitle "playchess.com"]
[Source "ChessBase"]
[SourceQuality "1"]
[TimeControl "5400+30"]

1. d4 {[%emt 0:00:03]} d5 {[%emt 0:00:04]} 2. c4 {[%emt 0:00:05]} e6 {[%emt 0:00:10]} 3. Nf3 {[%emt 0:00:06]} Nf6 {[%emt 0:00:28]} 4. g3 {[%emt 0:00:06]} c6 {[%emt 0:00:55]} 5. Qc2 {[%emt 0:00:07]} Bd6 {[%emt 0:01:34]} 6. Bg2 {[%emt 0:00:07]} O-O {[%emt 0:00:10]} 7. O-O {[%emt 0:00:05]} Na6 {[%emt 0:00:49]} 8. a3 {[%emt 0:00:29]} c5 {[%emt 0:01:09]} 9. dxc5 {[%emt 0:01:48]} Bxc5 {[%emt 0:00:09]} 10. cxd5 {[%emt 0:00:40]} exd5 {[%emt 0:00:34]} 11. Bg5 {[%emt 0:00:19]} g6 {[%emt 0:01:00]} 12. e3 {[%emt 0:00:24]} Bf5 {[%emt 0:00:45]} 13. Qc3 {[%emt 0:02:05]} Be7 {[%emt 0:02:40]} 14. Nd4 {[%emt 0:07:31]} Ne4 {[%emt 0:01:40]} 15. Bxe7 {[%emt 0:00:42]} Qd7 {[%emt 0:01:26]} 16. Qb3 {[%emt 0:01:47]} Nec5 {[%emt 0:01:32]} 17. Bxc5 {[%emt 0:00:41]} Nxc5 {[%emt 0:00:03]} 18. Qb5 {[%emt 0:01:18]} Bd3 {[%emt 0:01:36]} 19. Qxd7 {[%emt 0:00:16]} Nxd7 {[%emt 0:00:03]} 20. Rd1 {[%emt 0:00:18]} Ne5 {[%emt 0:06:21]} 21. Nc3 {[%emt 0:01:25]} Bc4 {[%emt 0:04:27]} 22. Bf1 {[%emt 0:02:32]} Bxf1 {[%emt 0:03:49]} 23. Kxf1 {[%emt 0:00:57]} Rad8 {[%emt 0:00:16]} 24. Rac1 {[%emt 0:00:36]} Rfe8 {[%emt 0:02:38]} 25. Nde2 {[%emt 0:01:51]} Kg7 {[%emt 0:01:51]} 26. Rxd5 {[%emt 0:02:05]} Rxd5 {[%emt 0:01:13]} 27. Nxd5 {[%emt 0:00:08]} Rd8 {[%emt 0:01:21]} 28. Ndf4 {[%emt 0:02:03]} Rd2 {[%emt 0:02:34]} 29. Rb1 {[%emt 0:01:49]} Nf3 {[%emt 0:00:34]} 30. Kg2 {[%emt 0:00:45]} Ng5 {[%emt 0:00:38]} 31. Nd4 {[%emt 0:01:12]} Ne4 {[%emt 0:00:20]} 32. Nfe2 {[%emt 0:00:09]} b5 {[%emt 0:01:37]} 33. Kf1 {[%emt 0:00:13]} a5 {[%emt 0:00:27]} 34. Nxb5 {[%emt 0:01:09]} Rc2 {[%emt 0:00:17]} 35. Nbc3 {[%emt 0:00:48]} Nd2+ {[%emt 0:00:10]} 36. Ke1 {[%emt 0:00:33]} Nxb1 {[%emt 0:00:07]} 37. Nxb1 {[%emt 0:00:05]} Rxb2 {[%emt 0:00:10]} 38. Nbc3 {[%emt 0:00:51]} Rb3 {[%emt 0:00:27]} 39. a4 {[%emt 0:00:03]} Ra3 {[%emt 0:00:13]} 40. Kf1 {[%emt 0:00:27]} Ra1+ {[%emt 0:00:28]} 41. Kg2 {[%emt 0:00:07]} f5 {[%emt 0:00:38]} 42. h4 {[%emt 0:00:17]} Kf6 {[%emt 0:00:24]} 43. f4 {[%emt 0:01:11]} h6 {[%emt 0:00:18]} 44. Kf3 {[%emt 0:00:38]} g5 {[%emt 0:00:14]} 45. hxg5+ {[%emt 0:00:45]} hxg5 {[%emt 0:00:07]} 46. e4 {[%emt 0:00:58]} fxe4+ {[%emt 0:06:16]} 47. Kxe4 {[%emt 0:00:24]} g4 {[%emt 0:01:00]} 48. Kd5 {[%emt 0:00:32]} Ra3 {[%emt 0:04:13]} 49. Kc4 {[%emt 0:01:40]} Ra1 {[%emt 0:00:58]} 50. Kb5 {[%emt 0:00:11]} Rh1 {[%emt 0:00:15]} 51. Kxa5 {[%emt 0:00:12]} Rh5+ {[%emt 0:00:07]} 52. Kb6 {[%emt 0:00:22]} Ke7 {[%emt 0:00:29]} 53. a5 {[%emt 0:00:12]} Rh7 {[%emt 0:05:03]} 54. Kb7 {[%emt 0:00:18]} Ke6+ {[%emt 0:00:06]} 55. Kb6 {[%emt 0:00:00]} Kd6 {[%emt 0:00:30]} 1-0